bitfinex-derivatives/quotes_BTCF0:USTF0_20250218
["timestamp","ask_amount","ask_price","bid_price","bid_amount"]
[1739913070887,0.210581,95021.0,95012.0,0.36095781]
[1739913071290,0.3608,95029.0,95012.0,0.00015781]
[1739913071291,0.3608,95018.0,95012.0,0.00015781]
[1739913071493,0.2105896,95017.0,95012.0,0.00015781]
[1739913071695,0.2105965,95014.0,95012.0,0.00015781]
[1739913071891,0.3608,95013.0,95012.0,0.00015781]
[1739913072098,0.3608,95013.0,95003.0,0.00157882]
[1739913072099,0.2106185,95004.0,95003.0,0.00157882]
[1739913072490,0.3608,95013.0,95003.0,0.00157882]
[1739913072994,0.3608,95013.0,95008.0,0.2106087]
[1739913073294,0.3608,95013.0,95003.0,0.00157882]
[1739913073498,0.2106168,95005.0,95003.0,0.00157882]
[1739913073702,0.3608,95013.0,95003.0,0.00157882]
[1739913073994,0.3608,95013.0,95005.0,0.2106146]
[1739913074393,0.3608,95013.0,95003.0,0.00157882]
[1739913074586,0.2106145,95006.0,95003.0,0.00157882]
[1739913074794,0.2106184,95005.0,95003.0,0.00157882]
[1739913076399,0.3608,95004.0,95003.0,0.00157882]
[1739913077092,0.2106184,95005.0,95003.0,0.00157882]
[1739913077294,0.3608,95004.0,95003.0,0.00257882]
[1739913077792,0.3608,95004.0,95003.0,0.00157882]
[1739913077793,0.005,95004.0,95003.0,0.00157882]
[1739913078204,0.2106184,95005.0,95003.0,0.00157882]
[1739913078391,0.2156184,95005.0,95003.0,0.00157882]
[1739913079694,0.2106184,95005.0,95003.0,0.00157882]
[1739913079897,0.005,95004.0,95003.0,0.00157882]
[1739913080292,0.2106184,95005.0,95003.0,0.00157882]
[1739913080593,0.2156184,95005.0,95003.0,0.00157882]
[1739913081003,0.005,95004.0,95003.0,0.00157882]
[1739913082104,0.3608,95006.0,95003.0,0.00157882]
[1739913082293,0.2106185,95004.0,95003.0,0.00157882]
[1739913082498,0.2106229,95002.0,95001.0,0.00015781]
[1739913083008,0.005,95005.0,95001.0,0.00015781]
[1739913083200,0.005,95005.0,95004.0,0.2106185]
[1739913083596,0.00015781,95011.0,95001.0,0.00015781]
[1739913083899,0.19140216,95011.0,95001.0,0.00015781]
[1739913084100,0.00015781,95011.0,95001.0,0.00015781]
[1739913084296,0.2106229,95002.0,95001.0,0.00015781]
[1739913086607,0.2136229,95002.0,95001.0,0.00015781]
[1739913090099,0.2243463,95002.0,95000.0,0.1]
[1739913090304,0.2106828,94975.0,94974.0,0.2211]
[1739913090510,0.2106983,94968.0,94963.0,0.2443]
[1739913091715,0.2107183,94959.0,94958.0,0.00015791]
[1739913091906,0.5715183,94959.0,94958.0,0.00015791]
[1739913092300,0.3608,94959.0,94958.0,0.00015791]
[1739913093811,0.3618,94959.0,94958.0,0.00015791]
[1739913094014,0.001,94959.0,94958.0,0.00015791]
[1739913095105,0.219,94974.0,94958.0,0.00015791]
[1739913095307,0.219,94974.0,94967.0,0.2106996]
[1739913095507,0.2106946,94970.0,94967.0,0.2106996]
[1739913095708,0.3608,94972.0,94960.0,0.210714]
[1739913096018,0.2107015,94967.0,94962.0,0.2107109]
[1739913096906,0.3628,94972.0,94958.0,0.00015791]
[1739913097105,0.2107183,94959.0,94958.0,0.00015791]
[1739913100119,0.2117183,94959.0,94958.0,0.00015791]
[1739913103717,0.0526854,94949.0,94927.0,0.2444]
[1739913103907,0.19024435,94940.0,94927.0,0.2444]
[1739913104113,0.2107674,94937.0,94931.0,0.2107804]
[1739913104420,0.19124435,94940.0,94931.0,0.2107804]
[1739913104720,0.19124435,94940.0,94927.0,0.2444]
[1739913104923,0.2107789,94932.0,94930.0,0.2107806]
[1739913105220,0.19124435,94940.0,94927.0,0.2444]
[1739913105413,0.210776,94934.0,94929.0,0.2107833]
[1739913105610,0.210776,94934.0,94930.0,0.2107825]
[1739913105812,0.3608,94944.0,94931.0,0.3608]
[1739913106120,0.000158,94945.0,94940.0,0.210759]
[1739913106313,0.000158,94945.0,94932.0,0.4846]
[1739913106620,0.000158,94945.0,94944.0,0.2107516]
[1739913106817,0.41204779,94959.0,94944.0,0.3608]
[1739913106818,0.05124779,94959.0,94944.0,0.3608]
[1739913107120,0.05124779,94959.0,94956.0,0.2107237]
[1739913107817,0.2107257,94956.0,94949.0,0.2107389]
[1739913108018,0.05124779,94959.0,94948.0,0.000158]
[1739913108212,0.2107382,94950.0,94948.0,0.000158]
[1739913109923,0.3608,94949.0,94948.0,0.000158]
[1739913110923,0.2107849,94929.0,94928.0,0.2409]
[1739913111225,0.2108204,94913.0,94911.0,0.2409]
[1739913111424,0.18677563,94965.0,94925.0,0.3608]
[1739913111722,0.2106542,94988.0,94967.0,0.2106997]
[1739913111917,0.49890594,95010.0,94983.0,0.932265]
[1739913112115,0.49890594,95010.0,94983.0,0.7216]
[1739913112419,0.49890594,95010.0,94992.0,0.5714451]
[1739913112420,0.24745377,94993.0,94992.0,0.5714451]
[1739913112817,0.30766159,95010.0,94992.0,0.3608]
[1739913113023,0.30766159,95010.0,95009.0,0.3608]
[1739913113433,0.38433606,95010.0,95009.0,0.3608]
[1739913114026,0.38933606,95010.0,95009.0,0.3608]
[1739913114719,0.00015791,95019.0,95009.0,0.7216]
[1739913115029,0.4824,95050.0,95034.0,0.210552]
[1739913115218,0.4824,95050.0,95034.0,0.7216]
[1739913115219,0.67364435,95050.0,95034.0,0.7216]
[1739913115422,0.078254,95035.0,95034.0,0.3608]
[1739913116720,0.085254,95035.0,95034.0,0.3618]
[1739913117718,0.084254,95035.0,95034.0,0.3618]
[1739913119228,0.078254,95035.0,95034.0,0.3608]
[1739913119417,0.081254,95035.0,95034.0,0.3618]
[1739913121327,0.2918038,95035.0,95034.0,0.001]
[1739913121727,0.2105941,95015.0,95014.0,0.3608]
[1739913121922,0.28611066,95015.0,95014.0,0.3608]
[1739913122120,0.2363,95034.0,95014.0,0.3608]
[1739913122325,0.2105686,95027.0,95025.0,0.3608]
[1739913122526,0.2095686,95027.0,95025.0,0.3608]
[1739913122729,0.07551656,95026.0,95025.0,0.3608]
[1739913125422,0.08051656,95026.0,95025.0,0.3618]
[1739913125928,0.07551656,95026.0,95025.0,0.3608]
[1739913126626,0.07951656,95026.0,95025.0,0.3608]
[1739913127131,0.28608626,95026.0,95025.0,0.3608]
[1739913128836,0.29008626,95026.0,95025.0,0.3608]
[1739913129231,0.29008626,95026.0,95016.0,0.00015791]
[1739913129232,0.2105896,95017.0,95016.0,0.00015791]
[1739913129532,0.28510616,95017.0,95016.0,0.00015791]
[1739913130136,0.219,95057.0,95016.0,0.00015791]
[1739913130344,27.92947395,95583.0,95016.0,0.00015791]
[1739913130345,0.5296721,95120.0,95071.0,0.3608]
[1739913130637,0.5296721,95120.0,95085.0,0.3608]
[1739913130638,0.2103938,95106.0,95085.0,0.3608]
[1739913130824,0.4978,95110.0,95085.0,0.571239]
[1739913131026,0.01349773,95099.0,95085.0,0.571239]
[1739913131232,0.4978,95110.0,95085.0,0.571239]
[1739913131431,0.00015781,95095.0,95085.0,0.3608]
[1739913132043,0.2104218,95093.0,95085.0,0.3608]
[1739913132529,0.25096337,95086.0,95085.0,0.3608]
[1739913132729,0.001,95086.0,95085.0,0.3608]
[1739913133125,0.2104218,95093.0,95085.0,0.3618]
[1739913133326,0.2104218,95093.0,95092.0,0.3608]
[1739913135841,0.5114218,95093.0,95092.0,0.3618]
[1739913136039,0.2104346,95087.0,95086.0,0.3608]
[1739913137448,0.2124346,95087.0,95086.0,0.3618]
[1739913137936,0.2124346,95087.0,95076.0,0.00015781]
[1739913137937,0.2104567,95077.0,95076.0,0.00015781]
[1739913138332,0.2104567,95077.0,95076.0,0.36095781]
[1739913139144,0.2104567,95077.0,95045.0,0.231]
[1739913139145,0.3608,95077.0,95056.0,0.3608]
[1739913139447,0.209501,95057.0,95056.0,0.3608]
[1739913140440,0.00015781,95066.0,95048.0,0.3608]
[1739913140638,0.2105187,95049.0,95047.0,0.00015781]
[1739913140832,0.2105187,95049.0,95048.0,0.3608]
[1739913141038,0.2095187,95049.0,95048.0,0.3608]
[1739913141539,0.22284534,95049.0,95048.0,0.3608]
[1739913141941,0.22284534,95049.0,95047.0,0.00015781]
[1739913143146,0.22284534,95049.0,95048.0,0.001]
[1739913143648,0.22284534,95049.0,95047.0,0.00015781]
[1739913143845,0.22884534,95049.0,95047.0,0.00115781]
[1739913144055,0.05120429,95048.0,95047.0,1e-08]
[1739913144242,0.05120429,95048.0,95037.0,0.3608]
[1739913144436,0.2105431,95038.0,95037.0,0.3608]
[1739913145445,0.49237515,95047.0,95028.0,0.00010546]
[1739913145446,0.210563,95029.0,95028.0,0.00010546]
[1739913146053,0.00015781,95038.0,95028.0,0.00010546]
[1739913146253,0.2105453,95037.0,95036.0,0.3608]
[1739913146438,0.2095453,95037.0,95036.0,0.3608]
[1739913147645,0.2155453,95037.0,95036.0,0.3618]
[1739913149350,0.2155453,95037.0,95036.0,0.001]
[1739913150248,0.006,95037.0,95036.0,0.001]
[1739913150454,0.3471053,95037.0,95036.0,0.001]
[1739913150750,0.2165453,95037.0,95036.0,0.001]
[1739913154647,0.006,95037.0,95036.0,0.001]
[1739913154847,0.13528,95037.0,95036.0,0.001]
[1739913155249,0.3458253,95037.0,95036.0,0.001]
[1739913155449,0.006,95037.0,95036.0,0.001]
[1739913155849,0.2165453,95037.0,95036.0,0.001]
[1739913156951,0.006,95037.0,95036.0,0.001]
[1739913157149,0.18728246,95040.0,95036.0,0.001]
[1739913157358,0.19124435,95070.0,95039.0,0.3608]
[1739913157563,0.19124435,95080.0,95061.0,0.3608]
[1739913157853,0.23155781,95074.0,95069.0,0.3608]
[1739913158156,0.2184962,95074.0,95069.0,0.3608]
[1739913158356,0.2184962,95074.0,95073.0,0.5712656]
[1739913158858,0.2184962,95074.0,95073.0,0.3608]
[1739913159053,0.00015781,95081.0,95073.0,0.3608]
[1739913159258,0.00015781,95081.0,95080.0,0.3608]
[1739913160156,0.2104634,95074.0,95073.0,0.3618]
[1739913160351,0.2104634,95074.0,95073.0,0.3608]
[1739913160658,0.2094634,95074.0,95073.0,0.3608]
[1739913161562,0.2104877,95063.0,95062.0,0.36095781]
[1739913161750,0.2104877,95063.0,95062.0,0.00015781]
[1739913163061,0.2094877,95063.0,95062.0,0.00015781]
[1739913163452,0.2094877,95063.0,95062.0,1e-08]
[1739913164260,0.2134877,95063.0,95062.0,0.00100001]
[1739913166365,0.26468617,95063.0,95062.0,0.00100001]
[1739913166550,0.2095121,95052.0,95051.0,0.3608]
[1739913166863,0.2105342,95042.0,95041.0,0.36237818]
[1739913167362,0.2095342,95042.0,95041.0,0.3608]
[1739913167657,0.22196367,95042.0,95041.0,0.3608]
[1739913167861,0.22696367,95042.0,95041.0,0.3618]
[1739913169360,0.22196367,95042.0,95041.0,0.3618]
[1739913169554,0.22796367,95042.0,95041.0,0.3618]
[1739913170055,0.27916214,95042.0,95041.0,0.3618]
[1739913170365,0.27916214,95042.0,95041.0,0.001]
[1739913170867,0.27916214,95042.0,95032.0,0.00010546]
[1739913170868,0.2105542,95033.0,95032.0,0.00010546]
[1739913172163,0.2105985,95013.0,95012.0,0.3608]
[1739913172668,0.2095985,95013.0,95012.0,0.3608]
[1739913173467,0.2115985,95013.0,95012.0,0.3608]
[1739913173655,0.2095985,95013.0,95012.0,0.3608]
[1739913173857,0.2125985,95013.0,95012.0,0.3608]
[1739913175857,0.003,95013.0,95007.0,0.00157881]
[1739913176057,0.2106096,95008.0,95007.0,0.00157881]
[1739913176259,0.22301845,95008.0,95007.0,0.00157881]
[1739913177159,0.2106229,95002.0,95001.0,0.3608]
[1739913177560,0.2106561,94987.0,94986.0,0.3608]
[1739913179775,0.24406175,94996.0,94986.0,0.3608]
[1739913180069,0.07821817,95048.0,95025.0,0.3608]
[1739913180265,0.2301,95083.0,95047.0,0.7216]
[1739913180461,0.2301,95083.0,95082.0,0.3608]
[1739913180667,0.24282926,95083.0,95082.0,0.3608]
[1739913181072,0.277564,95089.0,95082.0,0.3608]
[1739913181270,0.277564,95089.0,95088.0,0.3608]
[1739913182366,0.277564,95089.0,95088.0,0.7216]
[1739913183588,0.284564,95089.0,95088.0,0.7226]
[1739913184684,0.284564,95089.0,95088.0,0.3608]
[1739913185085,0.2104458,95082.0,95080.0,0.3608]
[1739913185282,0.7216,95083.0,95055.0,0.2105038]
[1739913185492,0.3608,95064.0,95048.0,0.2362]
[1739913185678,0.3608,95064.0,95050.0,0.2105162]
[1739913186486,0.3608,95064.0,95051.0,0.2105132]
[1739913187079,0.3608,95064.0,95048.0,0.2362]
[1739913187388,0.12784,95063.0,95055.0,0.2105054]
[1739913187588,0.3658,95064.0,95055.0,0.2105054]
[1739913187783,0.3608,95064.0,95055.0,0.2105054]
[1739913187988,0.3668,95064.0,95055.0,0.2105054]
[1739913188187,0.006,95064.0,95056.0,0.2105019]
[1739913188383,0.0001578,95067.0,95062.0,0.2104879]
[1739913188592,0.0001578,95067.0,95066.0,0.2104811]
[1739913189095,0.0001578,95067.0,95061.0,0.3608]
[1739913189298,0.0001578,95067.0,95061.0,0.5712916]
[1739913189497,0.0001578,95067.0,95061.0,0.3608]
[1739913189892,0.3608,95062.0,95055.0,0.001]
[1739913190089,0.2104976,95059.0,95055.0,0.001]
[1739913190493,0.3608,95062.0,95055.0,0.001]
[1739913190798,0.3608,95062.0,95054.0,0.4796]
[1739913191097,0.2105268,95046.0,95041.0,0.2195]
[1739913191394,0.01246135,95047.0,95024.0,0.4784]
[1739913191596,0.2105711,95026.0,95024.0,0.2411]
[1739913191792,0.2105711,95026.0,95013.0,0.5713976]
[1739913192101,0.5713568,95032.0,95013.0,0.3608]
[1739913192399,0.5713568,95032.0,95017.0,0.2105893]
[1739913192797,0.3608,95032.0,95020.0,0.19124435]
[1739913193103,0.0001578,95045.0,95034.0,0.2105514]
[1739913193291,0.0001578,95045.0,95030.0,0.19124435]
[1739913193496,0.0001578,95045.0,95043.0,0.2105305]
[1739913194387,0.3608,95062.0,95044.0,0.3608]
[1739913194595,0.3608,95062.0,95057.0,0.2104996]
[1739913194896,0.3608,95081.0,95068.0,0.2104752]
[1739913195197,0.3608,95081.0,95068.0,0.2104763]
[1739913195401,0.2333,95082.0,95068.0,0.2104763]
[1739913195599,0.2104594,95076.0,95068.0,0.2104763]
[1739913195801,0.2104636,95074.0,95068.0,0.2104763]
[1739913195991,0.2104726,95070.0,95065.0,0.0001578]
[1739913196702,0.2104606,95076.0,95065.0,0.0001578]
[1739913197001,0.42121217,95082.0,95066.0,0.210481]
[1739913197002,0.007,95074.0,95066.0,0.210481]
[1739913197201,0.2104751,95069.0,95065.0,0.0001578]
[1739913197502,0.42121217,95082.0,95065.0,0.0001578]
[1739913197702,0.007,95070.0,95065.0,0.0001578]
[1739913197906,0.2174734,95070.0,95065.0,0.0001578]
[1739913198202,0.2104748,95069.0,95065.0,0.0001578]
[1739913199400,0.2104748,95069.0,95066.0,0.002]
[1739913199700,0.2104769,95068.0,95066.0,0.002]
[1739913199900,0.2104769,95068.0,95065.0,0.0031578]
[1739913200097,0.2333,95082.0,95066.0,0.2104811]
[1739913200301,0.210448,95081.0,95077.0,0.2104565]
[1739913200694,0.2104504,95080.0,95077.0,0.2104565]
[1739913200897,0.2104504,95080.0,95068.0,0.3608]
[1739913201095,0.3609578,95084.0,95071.0,0.21047]
[1739913201495,0.2104724,95070.0,95068.0,0.3608]
[1739913201698,0.3609578,95084.0,95065.0,0.0011578]
[1739913201699,0.2104792,95067.0,95065.0,0.0011578]
[1739913202595,0.3608,95066.0,95065.0,0.0011578]
[1739913202801,0.3608,95066.0,95031.0,0.2195]
[1739913203008,0.3608,95058.0,95031.0,0.2195]
[1739913203501,0.2105145,95051.0,95037.0,0.571345]
[1739913203695,0.3608,95046.0,95025.0,0.2504]
[1739913203901,0.2105574,95032.0,95024.0,0.3608]
[1739913204097,0.2105657,95028.0,95024.0,0.3608]
[1739913204301,0.3608,95036.0,95015.0,0.2195]
[1739913204503,0.3608,95024.0,95015.0,0.2195]
[1739913204701,0.2105731,95025.0,95015.0,0.2195]
[1739913204907,0.2065731,95025.0,95015.0,0.2195]
[1739913206201,0.2065731,95025.0,95005.0,0.2318]
[1739913206603,0.2065731,95025.0,95023.0,0.00457847]
[1739913207500,0.3608,95027.0,95023.0,0.00457847]
[1739913209404,0.2105727,95025.0,95023.0,0.00457847]
[1739913209613,0.2105727,95025.0,95023.0,0.00257847]
[1739913210604,0.2105727,95025.0,95023.0,0.00157847]
[1739913210912,0.2105727,95025.0,95023.0,0.00257847]
[1739913212714,0.0001578,95033.0,95023.0,0.00257847]
[1739913213118,0.0001578,95033.0,95031.0,0.2105581]
[1739913213817,0.0001578,95033.0,95032.0,0.2105564]
[1739913215811,0.3608,95049.0,95048.0,0.210521]
[1739913216008,0.2105144,95051.0,95039.0,0.19124435]
[1739913216210,0.2105022,95057.0,95050.0,0.2105163]
[1739913216514,0.3608,95059.0,95050.0,0.2105163]
[1739913216718,0.3608,95059.0,95046.0,0.2105247]
[1739913216917,0.0001578,95061.0,95051.0,0.3608]
[1739913217618,0.0001578,95061.0,95059.0,0.2104963]
[1739913217814,0.0001578,95061.0,95060.0,0.2104944]
[1739913219112,0.18843326,95068.0,95067.0,0.2104789]
[1739913219419,0.18843326,95068.0,95067.0,0.5712789]
[1739913220220,0.18843326,95068.0,95059.0,0.3608]
[1739913220422,0.39890996,95068.0,95061.0,0.2104906]
[1739913220717,0.19343326,95068.0,95052.0,0.5869]
[1739913221122,0.005,95068.0,95067.0,0.2104789]
[1739913222312,0.004,95068.0,95067.0,0.2104789]
[1739913222822,0.3608,95068.0,95056.0,0.3608]
[1739913223120,0.3678,95068.0,95052.0,0.2195]
[1739913223319,0.05262,95067.0,95052.0,0.2195]
[1739913223514,0.3608,95059.0,95041.0,0.2106926]
[1739913223720,0.2105102,95053.0,95042.0,0.5779327]
[1739913223920,0.2105102,95053.0,95042.0,0.3674]
[1739913224121,0.2105102,95053.0,95044.0,0.2105287]
[1739913224314,0.2105102,95053.0,95041.0,0.0001578]
[1739913224315,0.3608,95049.0,95041.0,0.0001578]
[1739913224523,0.2105342,95042.0,95041.0,0.0001578]
[1739913226119,0.2105695,95027.0,95023.0,0.00157847]
[1739913227026,0.002,95042.0,95023.0,0.00157847]
[1739913227215,0.00157788,95139.0,95112.0,0.2103781]
[1739913227415,0.00157788,95139.0,95113.0,0.7216]
[1739913227920,0.252,95138.0,95113.0,0.9319771]
[1739913228414,0.25070727,95123.0,95122.0,0.2103572]
[1739913228619,0.25070727,95123.0,95122.0,0.5711572]
[1739913229127,0.00157788,95139.0,95138.0,0.2103218]
[1739913229328,0.00157788,95139.0,95138.0,0.5711218]
[1739913230223,0.007,95139.0,95138.0,0.5711218]
[1739913232036,0.00988091,95179.0,95138.0,0.3608]
[1739913232220,0.21024,95175.0,95174.0,0.7216]
[1739913232421,0.33568,95175.0,95174.0,0.7216]
[1739913234524,0.33568,95175.0,95174.0,0.7226]
[1739913234525,0.34268,95175.0,95174.0,0.7226]
[1739913234732,0.34228,95175.0,95174.0,0.7226]
[1739913236132,0.33928,95175.0,95174.0,0.7226]
[1739913237032,0.33928,95175.0,95151.0,0.2195]
[1739913237033,0.210271,95161.0,95160.0,0.33940162]
[1739913237236,0.209271,95161.0,95153.0,0.3608]
[1739913237537,0.2102848,95155.0,95153.0,0.3608]
[1739913237720,0.2092848,95155.0,95153.0,0.3608]
[1739913239528,0.2092848,95155.0,95153.0,0.3618]
[1739913240032,0.2162848,95155.0,95153.0,0.3618]
[1739913240437,0.2092848,95155.0,95153.0,0.3608]
[1739913240633,0.2162848,95155.0,95153.0,0.3618]
[1739913240829,0.2162848,95155.0,95153.0,0.001]
[1739913241136,0.2371,95154.0,95153.0,0.001]
[1739913241337,0.2103063,95145.0,95144.0,0.00015762]
[1739913242836,0.2093218,95138.0,95137.0,0.3608]
[1739913243433,0.2083218,95138.0,95137.0,0.3608]
[1739913243942,0.2153218,95138.0,95137.0,0.001]
[1739913244142,0.2103417,95129.0,95128.0,0.00015762]
[1739913244335,0.2103417,95129.0,95128.0,0.21029762]
[1739913244735,0.22069003,95129.0,95128.0,0.21029762]
[1739913244941,0.22069003,95129.0,95128.0,0.00015762]
[1739913246341,0.21969003,95129.0,95128.0,0.00015762]
[1739913246637,0.2103815,95111.0,95110.0,0.3608]
[1739913246836,0.2093815,95111.0,95110.0,0.3608]
[1739913247441,0.2083815,95111.0,95110.0,0.3608]
[1739913247648,0.2104058,95100.0,95096.0,0.3608]
[1739913248150,0.3608,95108.0,95099.0,0.42964]
[1739913248344,0.00015771,95109.0,95099.0,0.5803]
[1739913248544,0.00015771,95109.0,95108.0,0.21014]
[1739913249047,0.00015771,95109.0,95108.0,0.4205281]
[1739913249743,0.00315771,95109.0,95108.0,0.4205281]
[1739913250238,0.00015771,95109.0,95108.0,0.4205281]
[1739913250440,0.4823,95130.0,95108.0,0.21314]
[1739913250740,0.2103527,95125.0,95113.0,0.210377]
[1739913251042,0.4823,95130.0,95127.0,0.21014]
[1739913251237,0.2103417,95129.0,95127.0,0.21014]
[1739913251443,0.4823,95130.0,95127.0,0.21014]
[1739913251745,0.2103439,95128.0,95127.0,0.21014]
[1739913252643,0.4823,95130.0,95127.0,0.21014]
[1739913252850,0.2103439,95128.0,95127.0,0.21014]
[1739913253052,0.4823,95130.0,95127.0,0.21014]
[1739913253249,0.00015771,95138.0,95129.0,0.21014]
[1739913253445,0.00015771,95138.0,95137.0,0.781264]
[1739913254145,0.1,95200.0,95148.0,0.3608]
[1739913254346,0.1,95200.0,95178.0,0.20856252]
[1739913254347,0.00990217,95185.0,95178.0,0.20856252]
[1739913254939,0.2102243,95183.0,95178.0,0.20856252]
[1739913255336,0.00990217,95185.0,95178.0,0.20856252]
[1739913255640,0.19332543,95179.0,95178.0,0.20956252]
[1739913256647,0.19332543,95179.0,95178.0,0.78059592]
[1739913256844,0.00015762,95188.0,95178.0,0.57036252]
[1739913257044,0.1,95200.0,95187.0,0.56936252]
[1739913257351,0.1,95200.0,95199.0,0.20856252]
[1739913257555,0.11031429,95200.0,95199.0,0.20856252]
[1739913258145,0.210187,95199.0,95187.0,0.3618]
[1739913258452,0.2101978,95195.0,95194.0,0.20856252]
[1739913258640,0.3085543,95200.0,95190.0,0.00015762]
[1739913258847,0.5187391,95200.0,95199.0,0.001]
[1739913259148,0.32749909,95200.0,95199.0,0.001]
[1739913259852,0.41731429,95200.0,95161.0,0.2195]
[1739913260040,0.3608,95163.0,95146.0,0.2195]
[1739913260241,0.5710671,95163.0,95146.0,0.2195]
[1739913260547,0.5710665,95163.0,95162.0,0.20856252]
[1739913260947,0.5700665,95163.0,95162.0,0.20856252]
[1739913261952,0.58038079,95163.0,95162.0,0.20856252]
[1739913262149,0.5700665,95163.0,95162.0,0.20856252]
[1739913262354,0.2102665,95163.0,95162.0,0.20856252]
[1739913262659,0.2102864,95154.0,95153.0,0.00015762]
[1739913262954,0.5710864,95154.0,95153.0,0.00015762]
[1739913263551,0.3608,95154.0,95132.0,0.2195]
[1739913263753,0.2102975,95149.0,95148.0,0.20856252]
[1739913263955,0.2092975,95149.0,95148.0,0.20856252]
[1739913264155,0.3608,95151.0,95132.0,0.2195]
[1739913264359,0.2103351,95132.0,95125.0,0.2423]
[1739913264657,0.5711351,95132.0,95122.0,0.2195]
[1739913264858,0.5711351,95132.0,95131.0,0.21013915]
[1739913265158,0.5701351,95132.0,95131.0,0.21013915]
[1739913266048,0.5701351,95132.0,95131.0,0.00157663]
[1739913266748,0.5721351,95132.0,95131.0,0.00157663]
[1739913267348,0.5701351,95132.0,95131.0,0.00157663]
[1739913267555,0.5771351,95132.0,95131.0,0.00257663]
[1739913271054,0.2472,95142.0,95131.0,0.00257663]
[1739913271055,0.3608,95203.0,95143.0,0.3608]
[1739913271263,0.3608,95214.0,95188.0,0.5710113]
[1739913271650,0.01009368,95211.0,95188.0,0.5710113]
[1739913271856,0.2947187,95210.0,95188.0,0.5710113]
[1739913272261,0.00015762,95198.0,95188.0,0.5710113]
[1739913272460,0.00015762,95198.0,95197.0,0.2101914]
[1739913272664,0.00015762,95198.0,95197.0,0.5709914]
[1739913274357,0.00015762,95198.0,95197.0,0.5719914]
[1739913274753,0.00015762,95198.0,95197.0,0.5709914]
[1739913275468,0.00015762,95198.0,95197.0,0.5739914]
[1739913275966,0.00015762,95198.0,95197.0,0.5709914]
[1739913276653,0.18648305,95198.0,95197.0,0.3608]
[1739913278266,0.00015762,95198.0,95197.0,0.3608]
[1739913280466,0.00015762,95198.0,95197.0,0.3638]
[1739913281469,0.00015762,95198.0,95197.0,0.3608]
[1739913281671,0.00015762,95198.0,95197.0,0.3638]
[1739913282269,0.00015762,95198.0,95197.0,0.3628]
[1739913283762,0.00015762,95198.0,95197.0,0.3618]
[1739913284658,0.00996407,95222.0,95197.0,0.3618]
[1739913284964,0.2101473,95217.0,95216.0,0.3608]
[1739913285268,0.2101473,95217.0,95216.0,0.36075891]
[1739913285466,0.39647273,95217.0,95216.0,0.36075891]
[1739913286371,0.18632543,95217.0,95216.0,0.36075891]
[1739913286768,0.39647273,95217.0,95216.0,0.36075891]
[1739913287369,0.39647273,95217.0,95207.0,0.00015753]
[1739913287370,0.18632543,95217.0,95207.0,0.00015753]
[1739913287674,0.3608,95253.0,95216.0,0.5803]
[1739913287864,0.3608,95253.0,95233.0,0.3608]
[1739913288065,0.2100999,95239.0,95224.0,0.3608]
[1739913288275,0.19082141,95250.0,95230.0,0.2101174]
[1739913288567,0.19082141,95250.0,95224.0,0.3608]
[1739913288568,0.00806258,95241.0,95224.0,0.3608]
[1739913288971,0.2101032,95237.0,95224.0,0.5709299]
[1739913289374,0.2101032,95237.0,95225.0,0.2101295]
[1739913289571,0.19082141,95240.0,95224.0,0.3608]
[1739913289765,0.2101178,95231.0,95224.0,0.3608]
[1739913289966,0.3608,95235.0,95216.0,0.2195]
[1739913290166,0.3608,95227.0,95216.0,0.2195]
[1739913290475,0.3608,95219.0,95216.0,0.2195]
[1739913290676,0.2101553,95214.0,95207.0,0.36095753]
[1739913291067,0.2101585,95212.0,95207.0,0.36095753]
[1739913291469,0.2101672,95208.0,95207.0,0.00015753]
[1739913291668,0.3608,95219.0,95207.0,0.00015753]
[1739913291878,0.3608,95219.0,95209.0,0.19082141]
[1739913292083,0.3608,95219.0,95207.0,0.00015753]
[1739913292267,0.2101476,95217.0,95207.0,0.00015753]
[1739913292474,0.2101549,95214.0,95207.0,0.00015753]
[1739913292684,0.3608,95219.0,95207.0,0.00015753]
[1739913292975,0.2101521,95215.0,95207.0,0.00015753]
[1739913294079,0.3608,95219.0,95207.0,0.00015753]
[1739913294080,0.2101542,95214.0,95207.0,0.00015753]
[1739913294279,0.3608,95219.0,95210.0,0.2101623]
[1739913294780,0.5709435,95219.0,95210.0,0.2101623]
[1739913294983,0.3608,95219.0,95207.0,0.00015753]
[1739913295170,0.2101501,95216.0,95207.0,0.00015753]
[1739913295973,0.2101501,95216.0,95207.0,0.21032633]
[1739913296180,0.2101633,95210.0,95207.0,0.00015753]
[1739913297272,0.3608,95219.0,95207.0,0.00015753]
[1739913297474,0.2101564,95213.0,95207.0,0.00015753]
[1739913298181,0.3608,95219.0,95207.0,0.00015753]
[1739913298379,0.2101672,95208.0,95207.0,0.00015753]
[1739913298582,0.2101584,95212.0,95207.0,0.00015753]
[1739913298779,0.3608,95219.0,95207.0,0.00015753]
[1739913298981,0.2101672,95208.0,95207.0,0.00015753]
[1739913299583,0.5709672,95208.0,95207.0,0.00015753]
[1739913299772,0.3608,95219.0,95194.0,0.3608]
[1739913299976,0.3608,95217.0,95207.0,0.2101678]
[1739913300182,0.3608,95217.0,95203.0,0.3608]
[1739913300385,0.2101548,95214.0,95203.0,0.3608]
[1739913300582,0.00015753,95220.0,95203.0,0.3608]
[1739913300783,0.2101719,95206.0,95203.0,0.3608]
[1739913300990,0.210176,95204.0,95203.0,0.3608]
[1739913301283,0.3608,95219.0,95202.0,0.00015753]
[1739913301488,0.3608,95219.0,95203.0,0.3608]
[1739913301682,0.12188,95218.0,95203.0,0.3608]
[1739913302082,0.210176,95204.0,95203.0,0.3608]
[1739913302781,0.2101782,95203.0,95202.0,0.00015753]
[1739913303892,0.00815262,95204.0,95173.0,0.6081]
[1739913304185,0.3608,95191.0,95182.0,0.2102242]
[1739913304589,0.2102085,95190.0,95183.0,0.18502116]
[1739913304895,0.2102095,95189.0,95183.0,0.18502116]
[1739913305680,0.36881415,95191.0,95183.0,0.18502116]
[1739913306285,0.57902095,95191.0,95183.0,0.18602116]
[1739913306488,0.36881415,95191.0,95183.0,0.18602116]
[1739913306683,0.2102159,95186.0,95183.0,0.18602116]
[1739913306889,0.36881415,95191.0,95183.0,0.18602116]
[1739913307100,0.2102163,95186.0,95183.0,0.18602116]
[1739913307293,0.36881415,95191.0,95183.0,0.18602116]
[1739913307486,0.3608,95191.0,95184.0,0.2102202]